fUSD/lending_fUSD_20240215
["ID","MTS","AMOUNT","RATE_DAILY","PERIOD"]
[314122463,1708005043178,-18997.24823841,0.00037,2]
[314122464,1708005043191,-4437.550569,0.00037,2]
[314122465,1708005043354,-19876.98733087,0.00037,2]
[314122466,1708005043367,-245517.45731645,0.00037,2]
[314122467,1708005043379,-150.0,0.00037,2]
[314122468,1708005043392,-6802.88731718,0.00037139,10]
[314122469,1708005043401,-591.56232695,0.00037164,8]
[314122470,1708005043410,-151.75,0.00037169,2]
[314122471,1708005043419,-388.44,0.00037178,2]
[314122472,1708005043428,-444.08,0.00037178,2]
[314122473,1708005043437,-2750.40584011,0.00037233,2]
[314122474,1708005043446,-152.59,0.00037233,2]
[314122475,1708005043455,-28222.9093755,0.00037233,2]
[314122476,1708005043464,-704.51,0.00037302,2]
[314122477,1708005043474,-153.51682494,0.00037383,2]
[314122478,1708005043483,-152.0,0.00037455,3]
[314122479,1708005043492,-1860.4,0.00037469,2]
[314122480,1708005043502,-3332.02769512,0.00037479,2]
[314122481,1708005043511,-731.61,0.000375,7]
[314122482,1708005043522,-6802.88731718,0.00037553,10]
[314122483,1708005043532,-1008.34124763,0.00037584,2]
[314122484,1708005043541,-1712.38,0.00037671,2]
[314122485,1708005043551,-500.0,0.00037675,10]
[314122486,1708005043561,-669.9861628,0.00037678,2]
[314122487,1708005043570,-179848.65974338,0.0003768,2]
[314122488,1708005043596,-460.43026537,0.0003768,2]
[314122499,1708005046253,-10440.6396,0.0003768,2]
[314122506,1708005046409,-1359.26084095,0.0003768,2]
[314122507,1708005046421,-1371.23808471,0.0003768,2]
[314122508,1708005046468,-540.71927992,0.0003768,2]
[314122511,1708005070932,3184.67200581,0.0002509,2]
[314122512,1708005075565,3974.2821582,0.00022,30]
[314122514,1708005261293,302.0,0.00025,2]
[314122526,1708006231345,-955.97,0.00031222,2]
[314122527,1708006231355,-184.93149327,0.00032562,2]
[314122528,1708006231365,-1429.0,0.00032662,2]
[314122529,1708006231374,-1000.0,0.00032897,2]
[314122530,1708006231384,-250.0,0.00032897,2]
[314122531,1708006231397,-168.0,0.00033,2]
[314122532,1708006231406,-155.0,0.00033027,2]
[314122533,1708006231416,-150.0,0.0003314,2]
[314122534,1708006231427,-500.0,0.0003314,2]
[314122535,1708006231438,-165.1,0.00033185,2]
[314122536,1708006231451,-169.32,0.00033271,2]
[314122537,1708006231461,-2000.0,0.00033369,2]
[314122538,1708006231471,-150.0,0.0003344,2]
[314122539,1708006231481,-150.0,0.0003344,3]
[314122540,1708006231490,-7092.48524168,0.00033441,2]
[314122541,1708006231502,-1404.2,0.00033441,2]
[314122542,1708006231514,-3024.66354625,0.00033441,2]
[314122543,1708006231543,-350.0,0.00033441,2]
[314122544,1708006231556,-1754.78592982,0.00033441,2]
[314122569,1708006237341,-163.06,0.00033098,2]
[314122570,1708006237351,-462.2,0.00033441,2]
[314122571,1708006237619,-9811.66528225,0.00033441,2]
[314122572,1708006237629,-955.97,0.00033486,2]
[314122573,1708006237637,-200.0,0.00033508,2]
[314122574,1708006237648,-530.03,0.00033508,2]
[314122575,1708006237658,-1592.6,0.00033508,2]
[314122576,1708006237667,-699.68,0.00033508,2]
[314122577,1708006237676,-163.06,0.0003353,2]
[314122578,1708006237686,-165.1,0.000336,2]
[314122579,1708006237695,-250.0,0.00033615,2]
[314122580,1708006237706,-630.12,0.00033741,2]
[314122581,1708006237715,-1047.62,0.00033754,2]
[314122582,1708006237725,-218.42,0.00033754,2]
[314122583,1708006237734,-1796.05,0.00033833,2]
[314122584,1708006237744,-233.2004,0.00033917,2]
[314122585,1708006237753,-157.24265043,0.00033937,2]
[314122586,1708006237762,-163.06,0.00033961,2]
[314122587,1708006237771,-165.1,0.00034015,2]
[314122588,1708006237780,-6670.21552196,0.00034017,2]
[314122589,1708006237789,-151.72,0.00034022,5]
[314122590,1708006237799,-499.99,0.00034022,2]
[314122591,1708006237809,-150.39,0.00034022,5]
[314122594,1708006237818,-50000.0,0.00034027,10]
[314122595,1708006237827,-37391.28166005,0.00034037,10]
[314122598,1708006237837,-1869.564083,0.00034037,10]
[314122600,1708006237847,-282.91257116,0.00034048,10]
[314122601,1708006237856,-74314.62117531,0.00034048,10]
[314122603,1708006237865,-163.06,0.00034392,2]
[314122605,1708006237874,-155.0,0.00034397,2]
[314122607,1708006237883,-595.43,0.00034423,2]
[314122609,1708006237893,-165.1,0.0003443,2]
[314122611,1708006237902,-250.0,0.000345,111]
[314122613,1708006237911,-150.1,0.00034552,2]
[314122615,1708006237920,-150.0,0.00034598,2]
[314122617,1708006237930,-800.0,0.00034603,2]
[314122618,1708006237939,-152.08,0.00034615,2]
[314122619,1708006237949,-2864.36,0.00034635,2]
[314122620,1708006237959,-25475.08954905,0.0003479,2]
[314122621,1708006237969,-2527.16323691,0.00034799,2]
[314122622,1708006237979,-163.06,0.00034823,2]
[314122623,1708006237988,-167.73,0.00034827,2]
[314122624,1708006237997,-165.1,0.00034844,2]
[314122625,1708006238006,-152.08,0.00034881,2]
[314122626,1708006238015,-526.36307397,0.00035,2]
[314122627,1708006238024,-2527.16323685,0.00035142,2]
[314122628,1708006238033,-25475.08954898,0.00035142,2]
[314122629,1708006238042,-152.08,0.00035147,2]
[314122630,1708006238051,-165.1,0.00035259,2]
[314122631,1708006238061,-327.94920117,0.00035273,2]
[314122632,1708006238070,-417896.0,0.00035283,2]
[314122633,1708006238079,-152.08,0.00035413,2]
[314122634,1708006238088,-1796.05,0.00035477,2]
[314122635,1708006238098,-704.48019519,0.00035497,2]
[314122636,1708006238107,-33434.02844941,0.000355,2]
[314122637,1708006238116,-2717.0,0.000356,3]
[314122638,1708006238125,-5388.0,0.00035616,5]
[314122639,1708006238135,-165.1,0.00035674,2]
[314122640,1708006238145,-152.08,0.0003568,2]
[314122641,1708006238154,-19013.68608986,0.000357,2]
[314122642,1708006238163,-16695.0,0.000357,3]
[314122643,1708006238174,-955.97,0.0003575,2]
[314122644,1708006238184,-157.30314006,0.00035767,2]
[314122645,1708006238193,-7928.44977879,0.0003589,8]
[314122646,1708006238204,-279.26563627,0.000359,2]
[314122647,1708006238213,-158.29197513,0.000359,8]
[314122648,1708006238223,-3165.42631041,0.000359,2]
[314122649,1708006238233,-157.24265042,0.000359,2]
[314122650,1708006238242,-151.50024879,0.000359,2]
[314122651,1708006238251,-153.52008883,0.000359,2]
[314122652,1708006238260,-1373.82312133,0.000359,2]
[314122653,1708006238269,-2342.321592,0.000359,2]
[314122654,1708006238279,-164.60010223,0.000359,2]
[314122655,1708006238288,-412.62765314,0.000359,2]
[314122656,1708006238297,-613.79772197,0.000359,2]
[314122657,1708006238307,-1224.01235473,0.0003591,5]
[314122658,1708006238315,-2864.36,0.00035916,2]
[314122659,1708006238325,-152.08,0.00035946,2]
[314122660,1708006238334,-2527.16323685,0.00035987,2]
[314122661,1708006238344,-25475.08954898,0.00035987,2]
[314122662,1708006238353,-500.0,0.00035988,15]
[314122663,1708006238361,-500.0,0.00035988,15]
[314122664,1708006238370,-500.0,0.00035988,15]
[314122665,1708006238379,-500.0,0.00035988,15]
[314122666,1708006238389,-227.04351082,0.00035988,15]
[314122667,1708006238399,-500.0,0.00035988,15]
[314122668,1708006238408,-500.0,0.00035988,15]
[314122669,1708006238417,-500.0,0.00035988,15]
[314122670,1708006238426,-500.0,0.00035988,15]
[314122671,1708006238435,-500.0,0.00035988,15]
[314122672,1708006238444,-500.0,0.00035988,15]
[314122673,1708006238454,-500.0,0.00035988,15]
[314122674,1708006238463,-500.0,0.00035988,15]
[314122675,1708006238472,-500.0,0.00035988,15]
[314122676,1708006238481,-500.0,0.00035988,15]
[314122677,1708006238490,-500.0,0.00035988,15]
[314122678,1708006238499,-500.0,0.00035988,15]
[314122679,1708006238508,-152.4114712,0.00035988,15]
[314122680,1708006238518,-500.0,0.00035988,15]
[314122681,1708006238527,-500.0,0.00035988,15]
[314122682,1708006238537,-500.0,0.00035988,15]
[314122683,1708006238550,-500.0,0.00035988,15]
[314122684,1708006238559,-500.0,0.00035988,15]
[314122685,1708006238568,-500.0,0.00035988,15]
[314122686,1708006238578,-4048.37529556,0.00035989,9]
[314122687,1708006238588,-4048.37529556,0.00035989,9]
[314122688,1708006238597,-4048.37529556,0.00035989,9]
[314122689,1708006238606,-1342660.04897016,0.00035989,5]
[314122690,1708006238616,-198370.389482,0.0003599,9]
[314122691,1708006238628,-327.94920117,0.0003599,2]
[314122692,1708006238637,-327.94920117,0.0003599,2]
[314122693,1708006238647,-5635.84156152,0.00035997,2]
[314122694,1708006238657,-1000.0,0.00035999,2]
[314122695,1708006238666,-300.0,0.00035999,2]
[314122696,1708006238675,-300.0,0.00035999,2]
[314122697,1708006238684,-300.0,0.00035999,2]
[314122698,1708006238694,-300.0,0.00035999,2]
[314122699,1708006238703,-300.0,0.00035999,2]
[314122700,1708006238713,-300.0,0.00035999,2]
[314122701,1708006238723,-300.0,0.00035999,2]
[314122702,1708006238734,-319.17669093,0.00035999,2]
[314122703,1708006238745,-666.74119929,0.00035999,2]
[314122704,1708006238756,-100000.0,0.00036,6]
[314122705,1708006238766,-9626.47282124,0.00036,2]
[314122706,1708006238777,-789074.42312687,0.00036,2]
[314122707,1708006239187,-202084.86133994,0.00036,2]
[314122708,1708006239196,-310.60182551,0.00036,2]
[314122709,1708006239205,-187.90778278,0.00036,2]
[314122710,1708006239214,-165.1,0.00036089,2]
[314122711,1708006239223,-460.63397926,0.00036191,3]
[314122712,1708006239232,-1106.83057247,0.000362,2]
[314122713,1708006239241,-205.0,0.00036204,2]
[314122714,1708006239251,-152.08,0.00036212,2]
[314122715,1708006239260,-1319.49989498,0.00036219,4]
[314122716,1708006239269,-272.0,0.0003623,2]
[314122717,1708006239278,-191.17059884,0.00036247,4]
[314122718,1708006239287,-7928.44977876,0.00036255,9]
[314122719,1708006239296,-507.83322311,0.00036274,4]
[314122720,1708006239305,-500.0,0.000364,2]
[314122721,1708006239314,-204.41,0.00036438,2]
[314122722,1708006239323,-321.93,0.00036438,2]
[314122723,1708006239333,-304.03,0.00036438,2]
[314122724,1708006239343,-152.33,0.00036438,2]
[314122725,1708006239352,-422.41,0.00036438,2]
[314122726,1708006239361,-307.79,0.00036438,2]
[314122727,1708006239370,-422.84,0.00036438,2]
[314122728,1708006239380,-343.33,0.00036438,2]
[314122729,1708006239389,-159.96,0.00036438,2]
[314122730,1708006239402,-212.5,0.00036438,2]
[314122731,1708006239411,-422.41,0.00036438,2]
[314122732,1708006239421,-150.0,0.00036438,2]
[314122733,1708006239430,-150.0,0.00036438,2]
[314122734,1708006239439,-150.0,0.00036438,2]
[314122735,1708006239448,-343.33,0.00036438,2]
[314122736,1708006239457,-411.9,0.00036438,2]
[314122737,1708006239466,-411.9,0.00036438,2]
[314122738,1708006239475,-422.41,0.00036438,2]
[314122739,1708006239484,-150.0,0.00036438,2]
[314122740,1708006239493,-150.0,0.00036438,2]
[314122741,1708006239503,-474.8,0.00036438,2]
[314122742,1708006239512,-150.0,0.00036438,2]
[314122743,1708006239521,-343.33,0.00036438,2]
[314122744,1708006239532,-418.75,0.00036438,2]
[314122745,1708006239542,-411.9,0.00036438,2]
[314122746,1708006239552,-150.0,0.00036438,2]
[314122747,1708006239563,-418.75,0.00036438,2]
[314122748,1708006239572,-422.41,0.00036438,2]
[314122749,1708006239582,-723.74032144,0.00036463,8]
[314122750,1708006239591,-152.08,0.00036479,2]
[314122751,1708006239601,-151.50024875,0.000365,2]
[314122752,1708006239610,-165.1,0.00036504,2]
[314122753,1708006239621,-152.34,0.00036577,2]
[314122754,1708006239631,-7928.44977876,0.00036619,9]
[314122755,1708006239640,-153.5200888,0.00036642,2]
[314122756,1708006239650,-31057.86132398,0.0003668,30]
[314122757,1708006239659,-1000.0,0.000367,2]
[314122758,1708006239669,-152.08,0.00036745,2]
[314122759,1708006239678,-210.0,0.00036785,2]
[314122760,1708006239687,-210.0,0.00036785,3]
[314122761,1708006239696,-2527.16323685,0.00036831,2]
[314122762,1708006239705,-7415.15451587,0.00036831,2]
[314122763,1708006239718,-2614.7562519,0.00036831,2]
[314122769,1708006240100,-285.27770273,0.00036831,2]
[314122770,1708006240722,-1531.9747817,0.00036831,2]
[314122771,1708006240736,-1538.32932951,0.00036831,2]
[314122772,1708006240748,-1499.98677709,0.00036831,2]
[314122773,1708006240781,-10589.61019018,0.00036831,2]
[314122774,1708006240791,-7928.44977876,0.00036984,10]
[314122775,1708006240801,-150.0,0.00036986,2]
[314122776,1708006240810,-300.0,0.00036986,7]
[314122777,1708006240819,-450.0,0.00036986,12]
[314122778,1708006240866,-600.0,0.00036986,17]
[314122779,1708006240875,-170.23847736,0.00036986,22]
[314122780,1708006240884,-83359.79614262,0.00037,7]
[314122781,1708006240905,-257.7396951,0.00037,7]
[314122791,1708006242375,-4685.85,0.00035999,2]
[314122792,1708006242384,-5727.15,0.00035999,2]
[314122793,1708006242394,-1396.56559789,0.00037,7]
[314122794,1708006242430,-979.783236,0.00037,7]
[314122795,1708006242442,-3355.14434971,0.00037,7]
[314122796,1708006242456,-6024.48922206,0.00037,7]
[314122797,1708006242468,-4626.48175662,0.00037,7]
[314122798,1708006242478,-411.68967878,0.00037,21]
[314122799,1708006242490,-3199.9993659,0.00037,21]
[314122800,1708006242499,-2731.09173429,0.00037,8]
[314122801,1708006242547,-22268.90826571,0.00037,8]
[314122802,1708006242556,-1000.0,0.00037009,2]
[314122803,1708006242565,-152.08,0.00037011,2]
[314122804,1708006242574,-723.74032144,0.00037036,8]
[314122805,1708006242583,-169.32,0.00037075,2]
[314122806,1708006242592,-151.50024875,0.000371,2]
[314122807,1708006242601,-1796.05,0.00037121,2]
[314122808,1708006242610,-2864.36,0.00037198,2]
[314122809,1708006242620,-1232.79360111,0.00037233,2]
[314122810,1708006242630,-411.9,0.0003726,2]
[314122811,1708006242639,-418.75,0.0003726,2]
[314122812,1708006242648,-411.9,0.0003726,2]
[314122813,1708006242657,-418.75,0.0003726,2]
[314122814,1708006242666,-411.9,0.0003726,2]
[314122815,1708006242675,-411.9,0.0003726,2]
[314122816,1708006242684,-411.9,0.0003726,2]
[314122817,1708006242693,-823.56,0.0003726,2]
[314122818,1708006242701,-411.9,0.0003726,2]
[314122819,1708006242710,-411.9,0.0003726,2]
[314122820,1708006242720,-411.9,0.0003726,2]
[314122821,1708006242729,-418.75,0.0003726,2]
[314122822,1708006242738,-418.75,0.0003726,2]
[314122823,1708006242747,-418.75,0.0003726,2]
[314122824,1708006242757,-418.75,0.0003726,2]
[314122825,1708006242766,-418.75,0.0003726,2]
[314122826,1708006242775,-418.75,0.0003726,2]
[314122827,1708006242784,-418.75,0.0003726,2]
[314122828,1708006242794,-418.75,0.0003726,2]
[314122829,1708006242803,-151.0,0.00037265,30]
[314122830,1708006242812,-152.08,0.00037277,2]
[314122831,1708006242821,-150.0,0.00037339,2]
[314122832,1708006242830,-7928.44977876,0.00037348,10]
[314122833,1708006242839,-153.5200888,0.00037383,2]
[314122834,1708006242849,-1232.79360111,0.00037416,2]
[314122835,1708006242858,-152.34,0.00037463,2]
[314122836,1708006242867,-3165.42631037,0.00037479,2]
[314122837,1708006242877,-1326.20619331,0.000375,5]
[314122838,1708006242886,-1000.0,0.00037527,2]
[314122839,1708006242895,-152.08,0.00037544,2]
[314122840,1708006242904,-1759.51,0.00037545,2]
[314122841,1708006242913,-500.0,0.00037545,2]
[314122842,1708006242922,-29764.53645408,0.00037578,5]
[314122843,1708006242934,-370.044,0.00037578,5]
[314122844,1708006242946,-2970.46770045,0.00037578,5]
[314122845,1708006242962,-2810.5,0.00037578,5]
[314122846,1708006242983,-1167.0,0.00037578,5]
[314122852,1708006245382,-944.27708401,0.000359,2]
[314122854,1708006245392,-418.75,0.00036438,2]
[314122856,1708006245403,-53229.8780783,0.00037578,5]
[314122858,1708006245412,-42571.84507363,0.0003758,2]
[314122862,1708006245443,-1196.18608,0.0003758,2]
[314122863,1708006245454,-295.60688379,0.0003758,2]
[314122864,1708006245564,-4942.083895,0.0003758,2]
[314122865,1708006245676,-314.35217702,0.0003758,2]
[314122866,1708006245688,-703.20000001,0.0003758,2]
[314122867,1708006245701,-27142.57129055,0.0003758,2]
[314122868,1708006245822,-5937.33431305,0.0003758,2]
[314122869,1708006245837,-31762.10258695,0.0003758,2]
[314122870,1708006245846,-996.32548804,0.00037584,21]
[314122871,1708006245855,-154.28055018,0.00037599,2]
[314122872,1708006245864,-12072.74979436,0.000376,2]
[314122873,1708006245873,-306.76142109,0.00037609,8]
[314122879,1708007351759,4227.68986479,0.00031,120]
[314122887,1708007431595,-350.0,0.00025,3]
[314122888,1708007431604,-400.0,0.00027,3]
[314122889,1708007431614,-450.0,0.00029,3]
[314122890,1708007431623,-150.1,0.0003,3]
[314122891,1708007431633,-200.0,0.00030845,2]
[314122892,1708007431642,-300.0,0.00032562,2]
[314122893,1708007431654,-156.4188701,0.00033,4]
[314122894,1708007431664,-885.7826449,0.00033822,2]
[314122895,1708007431675,-630.75067554,0.00033822,2]
[314122896,1708007431687,-5060.84667956,0.00033822,2]
[314122897,1708007431696,-155.07261376,0.00033989,2]
[314122898,1708007431705,-150.99,0.00033989,2]
[314122899,1708007431715,-278.82,0.00034089,2]
[314122900,1708007431724,-150.99,0.00034089,30]
[314122901,1708007431733,-150.0,0.00034089,3]
[314122902,1708007431742,-18744.11066858,0.0003409,10]
[314122903,1708007431751,-2559.28432551,0.0003409,10]
[314122904,1708007431761,-255.2748733,0.0003409,10]
[314122905,1708007431769,-205.0,0.00034187,2]
[314122906,1708007431779,-155.07261367,0.00034307,2]
[314122907,1708007431788,-250.0,0.00034351,2]
[314122908,1708007431798,-898.02,0.0003439,2]
[314122909,1708007431807,-195.34,0.00034391,2]
[314122910,1708007431816,-200.0,0.00034432,2]
[314122911,1708007431825,-1829.21926955,0.0003445,2]
[314122912,1708007431848,-170.78073045,0.0003445,2]
[314122913,1708007431860,-1588.49304719,0.00034457,2]
[314122914,1708007431884,-319.91350895,0.00034457,2]
[314122915,1708007431896,-2464.41321123,0.00034457,2]
[314122916,1708007431910,-1696.59,0.00034457,2]
[314122917,1708007431926,-265.25084561,0.00034457,2]
[314122918,1708007431937,-568.82257769,0.00034457,2]
[314122919,1708007431949,-2189.86011638,0.00034457,2]
[314122920,1708007431960,-2189.92446649,0.00034457,2]
[314122921,1708007434162,-12616.73222646,0.00034457,2]
[314122922,1708007434172,-185.76,0.00034468,2]
[314122923,1708007434183,-150.0,0.00034475,2]
[314122924,1708007434193,-600.0,0.00034498,2]
[314122925,1708007434202,-172.42,0.00034502,2]
[314122926,1708007434212,-315.06,0.00034511,2]
[314122927,1708007434222,-250.0,0.00034517,2]
[314122928,1708007434232,-496.19,0.00034517,2]
[314122929,1708007434242,-1411.2,0.00034521,2]
[314122930,1708007434252,-150.36398041,0.00034552,2]
[314122931,1708007434262,-155.07261367,0.00034624,2]
[314122932,1708007434271,-499.99,0.00034728,2]
[314122933,1708007434282,-250.0,0.00034813,111]
[314122934,1708007434292,-151.0,0.00034821,120]
[314122935,1708007434302,-622.6287169,0.000349,4]
[314122936,1708007434312,-155.07261367,0.00034942,2]
[314122937,1708007434323,-157.29,0.00034991,2]
[314122938,1708007434333,-172.42,0.00035192,2]
[314122939,1708007434343,-400.0,0.0003521,2]
[314122940,1708007434353,-155.07261367,0.00035259,2]
[314122941,1708007434362,-3173.97218889,0.00035279,2]
[314122942,1708007434372,-1466.25,0.00035489,2]
[314122943,1708007434381,-151.0,0.00035532,30]
[314122944,1708007434391,-155.07261367,0.00035577,2]
[314122945,1708007434401,-837.91,0.00035627,2]
[314122946,1708007434413,-2581.0,0.000357,3]
[314122947,1708007434423,-15025.0,0.000357,3]
[314122948,1708007434432,-1411.2,0.00035798,2]
[314122949,1708007434442,-152.0,0.00035801,3]
[314122950,1708007434451,-157.29,0.00035866,2]
[314122951,1708007434461,-326.57622401,0.00035869,4]
[314122952,1708007434471,-172.42,0.00035882,2]
[314122953,1708007434480,-155.07261367,0.00035895,2]
[314122954,1708007434490,-290.5033928,0.0003596,3]
[314122955,1708007434499,-1239.5688481,0.0003599,3]
[314122956,1708007434509,-1873.75908666,0.0003602,4]
[314122957,1708007434518,-719.29797263,0.00036031,4]
[314122958,1708007434527,-3535.1159,0.00036031,2]
[314122959,1708007434537,-898.02,0.00036034,2]
[314122960,1708007434546,-37602.039644,0.00036131,7]
[314122961,1708007434555,-394.0843053,0.00036131,7]
[314122962,1708007434564,-1000.0,0.000362,2]
[314122963,1708007434574,-155.07261367,0.00036212,2]
[314122964,1708007434583,-328.0,0.0003623,2]
[314122965,1708007434593,-151.0,0.00036257,7]
[314122966,1708007434602,-205.0,0.00036338,6]
[314122967,1708007434612,-204.41,0.00036438,2]
[314122968,1708007434621,-155.07261367,0.0003653,2]
[314122969,1708007434631,-172.42,0.00036572,2]
[314122970,1708007434640,-2500.0,0.000367,2]
[314122971,1708007434649,-157.29,0.00036741,2]
[314122972,1708007434659,-1000.0,0.000368,2]
[314122973,1708007434669,-1792.43096531,0.000368,2]
[314122974,1708007434678,-155.07261367,0.00036847,2]
[314122975,1708007434688,-1651.1020816,0.0003689,10]
[314122976,1708007434698,-984.1945,0.00036899,2]
[314122977,1708007434708,-85608.75491964,0.000369,2]
[314122990,1708007437526,-1000.0,0.000369,2]
[314122994,1708007437587,-1853.32909837,0.000369,2]
[314122995,1708007437598,-1669.41574125,0.000369,2]
[314122997,1708007437612,-781.88578096,0.000369,2]
[314122999,1708007437624,-769.22313,0.000369,2]
[314123002,1708007437651,-53687.22542978,0.000369,2]
[314123003,1708007437662,-2063.877602,0.0003699,10]
[314123004,1708007437671,-412.7755204,0.0003699,10]
[314123005,1708007437681,-151.0,0.00036997,4]
[314123006,1708007437690,-16896.12900969,0.00037,7]
[314123007,1708007437701,-5277.98873066,0.00037,7]
[314123008,1708007437853,-4966.4,0.00037,7]
[314123009,1708007437870,-9015.98762147,0.00037,7]
[314123010,1708007437918,-9844.35647989,0.00037,7]
[314123011,1708007437930,-3466.66028671,0.00037,7]
[314123012,1708007437943,-7769.73691015,0.00037,7]
[314123013,1708007437956,-705.88,0.00037,7]
[314123014,1708007437985,-2169.81354491,0.00037,7]
[314123015,1708007437997,-2291.08251455,0.00037,7]
[314123016,1708007438011,-257.84999975,0.00037,7]
[314123017,1708007438025,-541.98537446,0.00037,7]
[314123018,1708007438037,-1788.25695,0.00037,7]
[314123019,1708007438049,-729.82228752,0.00037,7]
[314123020,1708007438061,-399.37201755,0.00037,7]
[314123021,1708007438073,-1305.7,0.00037,7]
[314123022,1708007438085,-18598.43035417,0.00037,7]
[314123023,1708007438097,-1158.53612,0.00037,7]
[314123024,1708007438109,-1018.91138684,0.00037,7]
[314123025,1708007438121,-750.15053776,0.00037,7]
[314123029,1708007440917,-11046.94987392,0.00037,7]
[314123030,1708007440927,-12450.0,0.00037,2]
[314123031,1708007440938,-1411.2,0.00037075,2]
[314123032,1708007440949,-500.0,0.0003711,7]
[314123033,1708007440960,-172.42,0.00037262,2]
[314123034,1708007440971,-1792.43096529,0.00037339,2]
[314123035,1708007440980,-152.0,0.00037455,3]
[314123036,1708007440990,-200.0,0.00037487,5]
[314123037,1708007440999,-210.0,0.00037498,3]
[314123038,1708007441009,-739.0699,0.00037499,2]
[314123039,1708007441018,-2998.16846533,0.00037499,2]
[314123040,1708007441027,-151.50024875,0.000375,2]
[314123041,1708007441037,-200.0,0.0003755,3]
[314123042,1708007441046,-5759.8672,0.00037576,2]
[314123043,1708007441055,-13466.7217,0.00037576,2]
[314123044,1708007441065,-1883.378,0.00037576,2]
[314123045,1708007441074,-124617.45462679,0.00037599,2]
[314123046,1708007441085,-61035.15846968,0.00037599,2]
[314123047,1708007441097,-1333.98741383,0.00037599,2]
[314123048,1708007441108,-3811.30005414,0.00037599,2]
[314123049,1708007441119,-2605.45869688,0.00037599,2]
[314123050,1708007441468,-5618.57125698,0.00037599,2]
[314123051,1708007441479,-45978.0694817,0.00037599,2]
[314123052,1708007441489,-1000.0,0.00037599,2]
[314123053,1708007441498,-37625.8503102,0.000376,2]
[314123054,1708007441529,-265.1286,0.000376,2]
[314123055,1708007441540,-1273.74952292,0.000376,2]
[314123056,1708007441552,-394.98373475,0.000376,2]
[314123057,1708007441564,-294.61367595,0.000376,2]
[314123058,1708007441575,-282.14,0.000376,2]
[314123096,1708007443370,-270.68018114,0.000376,2]
[314123097,1708007443416,-6691.03485981,0.000376,2]
[314123098,1708007443428,-9047.66341363,0.000376,2]
[314123099,1708007443440,-10448.4,0.000376,2]
[314123100,1708007443451,-9211.58899979,0.000376,2]
[314123101,1708007443787,-500.62099992,0.000376,2]
[314123102,1708007443853,-5015.29135933,0.000376,2]
[314123103,1708007443917,-2737.25656376,0.000376,2]
[314123104,1708007443929,-2607.15057847,0.000376,2]
[314123105,1708007443941,-13333.84720033,0.000376,2]
[314123108,1708007444081,-161.4292,0.000376,2]
[314123110,1708007444091,-155.0,0.000376,2]
[314123113,1708007444101,-3399.59374901,0.000376,2]
[314123116,1708007444126,-1886.1417409,0.000376,2]
[314123262,1708007445621,-594.92760368,0.00037499,8]
[314123264,1708007445631,-2015.37239632,0.000376,2]
[314123266,1708007445642,-2812.6,0.000376,2]
[314123268,1708007445654,-664.25232909,0.000376,2]
[314123270,1708007445668,-2621.04988468,0.000376,2]
[314123272,1708007445678,-3000.0,0.000376,2]
[314123275,1708007445688,-514.43821045,0.00037609,30]
[314123277,1708007445697,-200.0,0.0003761,10]
[314123279,1708007445706,-157.29,0.00037616,2]
[314123281,1708007445716,-800.0,0.00037616,5]
[314123283,1708007445725,-200.0,0.00037623,10]
[314123285,1708007445735,-800.0,0.00037636,5]
[314123287,1708007445744,-200.0,0.00037636,10]
[314123289,1708007445753,-500.0,0.00037636,10]
[314123291,1708007445763,-200.0,0.00037649,10]
[314123293,1708007445772,-800.0,0.00037655,5]